bitfinex/quotes_ETHUSD_20241225
["timestamp","ask_amount","ask_price","bid_price","bid_amount"]
[1735143773597,0.7573,3456.9,3456.4,2.35995427]
[1735143774105,0.7573,3456.9,3456.4,5.25311427]
[1735143774306,0.7573,3456.9,3456.5,0.60835143]
[1735143775544,0.7573,3456.9,3455.9,0.58158291]
[1735143775762,0.55,3456.6,3455.7,2.35995427]
[1735143776067,0.7573,3456.5,3455.7,2.35995427]
[1735143776358,0.55,3456.4,3455.7,2.35995427]
[1735143777049,3.44318,3456.4,3455.7,2.35995427]
[1735143777340,3.44318,3456.4,3455.8,0.53599543]
[1735143779026,2.89344,3456.1,3455.3,2.35995427]
[1735143779226,2.89358,3456.0,3455.3,2.35995427]
[1735143779472,2.89377,3455.7,3454.9,2.35995427]
[1735143779878,0.55,3455.8,3454.9,2.35995427]
[1735143780083,0.55,3456.3,3455.3,5.25400427]
[1735143780243,0.55,3456.3,3455.4,0.52540043]
[1735143781189,0.7573,3456.6,3455.8,2.8936]
[1735143782049,0.7573,3456.6,3455.9,2.89358]
[1735143782391,0.7573,3456.6,3456.2,2.89332]
[1735143783898,0.7573,3456.6,3455.7,2.35995427]
[1735143784197,0.7573,3456.4,3455.5,0.58460485]
[1735143784805,0.7573,3456.4,3455.5,3.47853485]
[1735143784964,0.7573,3456.4,3455.6,2.89384]
[1735143785174,0.7573,3456.4,3455.7,5.25370427]
[1735143785374,0.7573,3456.4,3455.8,2.89368]
[1735143785569,0.7573,3456.4,3455.9,0.52536343]
[1735143785970,0.7573,3456.4,3455.7,2.35995427]
[1735143786592,0.55,3456.3,3455.7,2.35995427]
[1735143786800,1.3073,3456.1,3455.3,2.35995427]
[1735143787170,1.3073,3456.1,3454.9,2.35995427]
[1735143787371,0.55,3455.7,3454.6,0.57150803]
[1735143787571,0.55,3455.4,3454.7,0.70295955]
[1735143788300,0.55,3455.2,3454.2,4.09846319]
[1735143788497,0.7924,3455.1,3454.2,4.09846319]
[1735143788972,0.7924,3455.1,3454.3,2.89493]
[1735143789989,0.7924,3455.1,3454.4,3.0]
[1735143790389,0.7924,3455.1,3454.1,9.55534381]
[1735143790577,0.7924,3455.1,3454.1,7.70781372]
[1735143790777,0.7924,3455.1,3454.2,2.89502]
[1735143791977,0.7924,3455.1,3454.3,2.89489]
[1735143792313,0.55,3455.0,3454.1,10.03703944]
[1735143792513,0.7924,3454.7,3454.1,3.73443526]
[1735143792677,0.55,3454.4,3454.1,3.73443526]
[1735143792879,0.7924,3454.5,3454.1,6.48155859]
[1735143793213,6.54863722,3456.1,3454.2,2.89501]
[1735143793214,1.3424,3455.1,3454.2,2.89501]
[1735143793619,1.3424,3455.1,3454.3,2.89493]
[1735143793815,1.3424,3455.1,3454.1,6.48155859]
[1735143794207,1.3424,3455.1,3454.2,2.895]
[1735143794382,1.3424,3455.1,3454.3,0.94245586]
[1735143794806,1.3424,3455.1,3454.4,2.89485]
[1735143795007,0.7924,3455.1,3454.7,2.89455]
[1735143795411,0.7924,3455.1,3454.5,5.25470427]
[1735143795580,0.7924,3455.1,3454.6,0.69800601]
[1735143797295,0.7924,3455.1,3454.7,2.89456]
[1735143798959,0.7924,3455.1,3454.6,0.69800601]
[1735143799134,0.7924,3455.1,3454.3,0.94245586]
[1735143799616,0.7924,3455.1,3454.4,2.89484]
[1735143799951,0.7924,3455.1,3454.5,0.7426179]
[1735143800829,0.7924,3455.1,3454.5,3.10257217]
[1735143801079,0.7924,3455.1,3454.5,5.99726217]
[1735143801941,0.7924,3455.1,3454.6,2.89468]
[1735143802945,0.7924,3455.1,3454.5,3.10257217]
[1735143803136,0.7924,3455.1,3454.5,5.99734217]
[1735143803336,0.7924,3455.1,3454.6,0.6939798]
[1735143806282,0.7924,3455.1,3454.3,0.94245586]
[1735143806581,0.7922,3454.9,3454.2,5.89501]
[1735143806890,0.55,3454.5,3454.1,3.73443526]
[1735143807039,0.7922,3454.2,3454.1,3.73443526]
[1735143807796,1.3422,3455.0,3454.1,3.73443526]
[1735143807957,1.3422,3455.0,3454.4,2.89484]
[1735143808144,0.7922,3455.0,3454.7,2.89459]
[1735143808349,0.7922,3455.0,3454.5,3.18713895]
[1735143808544,0.7922,3455.0,3454.5,0.29237895]
[1735143808753,0.7922,3455.0,3454.5,3.18714895]
[1735143809119,0.7922,3455.0,3454.6,2.89469]
[1735143809302,0.7922,3455.0,3454.6,3.44939232]
[1735143809502,0.7922,3455.0,3454.6,0.55470232]
[1735143809718,0.7922,3455.0,3454.5,0.29237895]
[1735143810104,0.7922,3455.0,3454.4,2.35995427]
[1735143811824,0.7922,3455.0,3454.4,5.25477427]
[1735143812035,0.7922,3455.0,3454.5,2.89477]
[1735143812929,0.7922,3455.0,3454.4,2.35995427]
[1735143813425,0.55,3454.9,3454.4,2.35995427]
[1735143813627,0.55,3454.9,3454.1,6.62952526]
[1735143813813,0.55,3454.9,3454.2,0.91367348]
[1735143815210,0.55,3454.9,3454.2,3.80868348]
[1735143815528,0.55,3454.9,3454.3,2.89493]
[1735143816649,0.7922,3455.0,3454.3,2.89493]
[1735143816850,0.7922,3455.0,3454.6,2.89469]
[1735143817153,0.7922,3455.0,3454.6,3.50026443]
[1735143818133,0.7922,3455.0,3454.7,2.89455]
[1735143818318,1.3768,3455.7,3454.7,2.89455]
[1735143818523,0.8268,3455.6,3454.7,2.89455]
[1735143818869,0.55,3455.5,3454.7,2.89455]
[1735143819009,0.55,3455.5,3454.7,3.48055787]
[1735143820031,0.55,3455.5,3454.7,0.58600787]
[1735143820032,0.8268,3455.4,3454.7,0.58600787]
[1735143820359,0.8268,3455.4,3454.5,2.89476]
[1735143820555,0.55,3455.1,3454.0,0.058]
[1735143820750,0.8268,3455.0,3454.2,2.89501]
[1735143821541,0.55,3454.9,3454.2,2.89501]
[1735143823252,0.55,3454.9,3454.0,0.058]
[1735143823554,0.55,3454.9,3454.1,4.41774802]
[1735143823715,0.55,3454.9,3454.1,7.31284802]
[1735143824368,0.54,3454.9,3454.1,7.31284802]
[1735143824772,0.8268,3455.0,3454.1,4.41774802]
[1735143825085,0.8268,3455.0,3454.4,0.7702]
[1735143825229,0.8268,3455.0,3454.6,2.89466]
[1735143827137,0.7729,3455.4,3454.7,5.25453427]
[1735143827339,0.7729,3455.7,3455.1,2.89419]
[1735143827539,0.7729,3455.7,3454.7,2.35995427]
[1735143827744,0.7729,3455.7,3454.9,2.89442]
[1735143828237,0.7729,3455.7,3454.8,0.61543038]
[1735143828437,0.7729,3455.7,3454.5,0.31301543]
[1735143828640,0.7729,3455.5,3454.5,0.31301543]
[1735143828855,0.55,3455.4,3454.5,3.20772543]
[1735143829085,0.7729,3455.5,3454.6,2.89468]
[1735143829295,0.7729,3455.5,3454.7,0.62076954]
[1735143829643,0.7729,3455.5,3454.7,3.51535954]
[1735143829844,0.7729,3455.3,3454.5,0.31301543]
[1735143830045,0.7729,3455.3,3454.3,5.83315992]
[1735143830642,0.55,3455.0,3454.2,1.20344319]
[1735143830860,0.55,3455.0,3454.2,4.09844319]
[1735143831062,0.7729,3454.9,3454.2,4.09844319]
[1735143831254,0.7729,3454.9,3454.3,2.89494]
[1735143831468,0.7729,3454.9,3454.4,0.7312688]
[1735143831689,0.7729,3454.9,3454.4,3.6260988]
[1735143831888,0.7729,3454.9,3454.5,2.89477]
[1735143833431,0.7729,3454.9,3454.2,1.20344319]
[1735143833575,0.7724,3454.8,3454.2,1.20344319]
[1735143834334,0.7724,3454.8,3454.1,4.93787845]
[1735143834534,0.7724,3454.8,3454.1,6.1575577]
[1735143835683,0.7724,3454.8,3454.1,4.95411451]
[1735143837023,0.7724,3454.8,3454.1,4.90411451]
[1735143838885,0.7724,3454.8,3454.1,3.68443526]
[1735143839923,0.7724,3454.8,3454.2,2.89495]
[1735143840321,1.18868295,3455.0,3454.3,2.89493]
[1735143840503,0.7724,3454.9,3454.3,2.89493]
[1735143841220,1.18868295,3455.1,3454.1,3.68443526]
[1735143841221,1.18868295,3455.1,3454.4,3.14675427]
[1735143841396,1.18868295,3455.1,3455.0,2.89435]
[1735143841807,1.18868295,3455.1,3455.0,3.68115]
[1735143842186,1.18868295,3455.4,3455.3,2.8941]
[1735143843404,0.7724,3456.0,3455.6,2.89385]
[1735143843649,0.7724,3456.0,3455.7,0.289385]
[1735143844656,0.7724,3456.0,3455.4,2.89401]
[1735143845853,0.7724,3456.0,3455.2,3.56339746]
[1735143846352,0.7724,3456.0,3455.6,2.89385]
[1735143846845,1.96108295,3456.6,3456.3,2.89326]
[1735143847049,1.18868295,3456.6,3456.3,2.35995427]
[1735143847247,1.18868295,3456.6,3456.4,0.23599543]
[1735143847810,1.18868295,3456.6,3456.5,2.89309]
[1735143848436,0.7772,3457.2,3456.5,3.0]
[1735143848714,0.7772,3457.2,3456.4,3.23599543]
[1735143849432,0.7772,3457.2,3456.4,0.23599543]
[1735143849634,0.7772,3457.2,3456.3,2.35995427]
[1735143851148,0.7772,3457.2,3456.4,2.89316]
[1735143852236,0.7772,3457.2,3456.8,2.89277]
[1735143852753,0.7772,3457.2,3456.3,2.35995427]
[1735143853046,0.7772,3457.2,3456.7,2.89284]
[1735143853247,0.7772,3457.9,3456.8,0.289284]
[1735143853448,0.55,3457.8,3456.9,2.89268]
[1735143853751,0.55,3457.8,3456.7,2.89292]
[1735143854118,0.7772,3457.9,3456.5,0.7682]
[1735143854330,0.7772,3457.9,3456.9,2.89275]
[1735143854547,0.7772,3457.9,3457.0,0.52527043]
[1735143855929,0.7772,3457.9,3457.3,2.89242]
[1735143857660,0.7772,3457.9,3457.1,5.25252427]
[1735143857860,2.892,3457.9,3456.7,2.35995427]
[1735143858090,0.7772,3457.8,3456.8,2.89277]
[1735143858282,0.7772,3457.4,3456.4,3.0]
[1735143858579,0.7772,3457.4,3456.4,3.482421]
[1735143858899,0.7772,3457.4,3456.4,0.589321]
[1735143859102,0.7772,3457.4,3456.6,2.89301]
[1735143859253,0.7772,3457.4,3456.4,0.589321]
[1735143859457,0.7772,3456.8,3455.7,2.35995427]
[1735143859654,0.7772,3456.8,3455.8,0.56852738]
[1735143859850,0.7772,3456.6,3455.8,0.56852738]
[1735143860674,0.7772,3456.6,3455.7,2.35995427]
[1735143861742,0.7772,3456.6,3455.9,2.89358]
[1735143861993,0.7772,3456.6,3456.0,0.52535343]
[1735143862142,0.7772,3456.6,3456.0,3.41885343]
[1735143862478,0.7772,3456.6,3456.1,2.89336]
[1735143866854,0.8232,3457.1,3456.5,2.35995427]
[1735143867054,0.8232,3457.6,3456.9,2.35995427]
[1735143867267,0.8232,3457.6,3457.2,2.89249]
[1735143868656,1.18868295,3459.0,3457.3,2.35995427]
[1735143868882,3.71429,3458.9,3457.8,2.35995427]
[1735143869180,0.8232,3458.9,3457.9,2.89189]
[1735143869357,0.8232,3458.9,3458.3,2.89157]
[1735143869746,0.8232,3458.9,3458.2,2.35995427]
[1735143870583,0.8232,3458.9,3458.2,5.25160427]
[1735143870878,0.8232,3458.9,3458.3,2.89156]
[1735143872382,0.8232,3458.9,3458.3,3.47402754]
[1735143873550,0.8232,3458.9,3458.4,2.8915]
[1735143875895,0.8232,3458.9,3458.5,2.89142]
[1735143876404,0.8232,3459.2,3458.8,2.89116]
[1735143876574,0.8232,3459.2,3458.6,5.25127427]
[1735143876890,0.8232,3459.2,3458.7,0.52512743]
[1735143877587,0.8232,3459.2,3458.7,3.41637743]
[1735143877793,0.8232,3459.2,3458.7,0.52512743]
[1735143878595,0.8232,3459.2,3458.3,3.47397754]
[1735143878971,0.8232,3459.2,3458.4,2.89146]
[1735143879296,0.8232,3459.2,3458.3,0.58246754]
[1735143879597,0.8232,3459.2,3458.5,2.89137]
[1735143880195,0.8232,3459.2,3458.6,2.35995427]
[1735143880494,0.8232,3459.2,3458.9,2.89108]
[1735143880992,0.7522,3459.9,3458.9,2.89108]
[1735143881180,0.7522,3459.9,3459.0,2.89095]
[1735143884055,2.89035,3459.8,3458.8,2.89117]
[1735143884398,0.7522,3459.7,3458.7,0.74099543]
[1735143884698,3.64262,3459.7,3459.0,0.505]
[1735143885012,4.006882,3459.7,3459.0,0.505]
[1735143885555,1.116462,3459.7,3459.0,0.505]
[1735143885755,0.55,3459.6,3459.0,0.505]
[1735143885996,2.89061,3459.5,3459.0,0.505]
[1735143886171,0.7522,3459.4,3459.0,0.505]
[1735143890206,0.7522,3459.4,3459.2,0.505]
[1735143902009,0.7522,3459.4,3459.3,0.505]
[1735143902183,3.64287,3459.4,3459.3,0.505]
[1735143902986,0.7522,3459.4,3459.3,0.505]
[1735143903196,0.757,3459.8,3459.3,0.505]
[1735143903401,0.757,3460.3,3459.5,2.35995427]
[1735143904020,0.757,3460.3,3459.6,0.8275]
[1735143904824,3.64695,3460.3,3459.6,0.8275]
[1735143905031,2.89001,3460.2,3459.5,2.35995427]
[1735143905829,0.55,3460.2,3459.4,0.8639863]
[1735143905993,2.89024,3460.0,3459.4,0.57749087]
[1735143906616,2.89024,3460.0,3459.3,0.505]
[1735143907048,2.89002,3460.2,3459.3,0.505]
[1735143907505,2.89009,3460.1,3459.3,0.505]
[1735143907703,2.89009,3460.1,3459.4,0.34316347]
[1735143908437,0.757,3460.3,3459.3,0.505]
[1735143908438,2.89019,3460.0,3459.3,0.505]
[1735143908643,0.757,3460.3,3459.3,0.505]
[1735143908939,2.89026,3459.9,3459.3,0.505]
[1735143910116,0.7792,3459.8,3459.3,0.505]
[1735143910343,4.21987,3459.4,3459.3,0.505]
[1735143910553,4.930899,3459.4,3459.3,0.505]
[1735143911971,4.930899,3459.4,3458.0,1.20344319]
[1735143911972,2.89141,3458.6,3458.0,1.20344319]
[1735143912136,2.89084,3459.2,3458.0,1.20344319]
[1735143912137,0.7792,3458.3,3458.0,1.20344319]
[1735143912459,0.7792,3458.3,3457.5,1.20344319]
[1735143912663,0.7792,3458.9,3457.7,2.35995427]
[1735143912870,0.55,3458.8,3457.7,2.35995427]
[1735143913359,0.7792,3458.9,3457.8,0.02891756]
[1735143913562,3.67036,3458.9,3457.9,0.7915]
[1735143913920,0.55,3458.8,3457.7,5.35995427]
[1735143914125,0.917036,3458.8,3457.7,2.35995427]
[1735143914325,0.7792,3458.4,3457.5,0.7915]
[1735143914531,1.696236,3458.8,3457.6,2.89216]
[1735143914746,2.89134,3458.6,3457.6,2.89216]
[1735143914946,2.89134,3458.6,3457.6,3.55388986]
[1735143915565,0.55,3458.6,3457.6,0.66172986]
[1735143915725,0.55,3458.6,3457.5,0.7915]
[1735143916068,2.89156,3458.4,3457.5,0.7915]
[1735143917554,0.55,3458.6,3457.5,0.7915]
[1735143917754,0.55,3458.6,3457.2,2.89243]
[1735143917755,2.89185,3458.0,3457.2,0.7915]
[1735143918350,2.89192,3457.9,3457.2,0.7915]
[1735143918547,0.7792,3457.8,3456.9,1.99494319]
[1735143918866,2.89219,3457.6,3456.9,1.99494319]
[1735143919167,2.89253,3457.2,3456.9,1.20344319]
[1735143919545,2.89253,3457.2,3456.4,1.20344319]
[1735143919871,0.7792,3457.4,3456.4,1.20344319]
[1735143920174,3.67157,3457.4,3456.4,2.11829159]
[1735143920542,0.7792,3457.4,3456.4,2.11829159]
[1735143920744,0.7792,3457.4,3456.6,0.7915]
[1735143920977,1.18868295,3457.6,3456.6,0.7915]
[1735143921271,1.18868295,3457.6,3456.6,3.68448]
[1735143921476,1.18868295,3457.6,3456.7,0.69592827]
[1735143921831,1.18868295,3457.6,3456.9,2.89276]
[1735143922033,0.7792,3457.7,3456.9,2.89276]
[1735143922261,3.67104,3458.0,3457.0,0.7915]
[1735143922739,0.7792,3458.0,3457.0,3.68415]
[1735143922940,0.7792,3458.0,3457.1,0.60441043]
[1735143923936,1.18868295,3458.5,3457.1,0.60441043]
[1735143924151,1.18868295,3458.5,3457.6,2.89215]
[1735143924375,1.18868295,3458.5,3457.8,0.7761]
[1735143924561,1.18868295,3458.5,3457.9,2.89189]
[1735143924876,1.18868295,3458.5,3457.9,3.49468443]
[1735143925038,1.18868295,3458.7,3457.9,3.49468443]
[1735143925576,1.18868295,3458.7,3458.2,0.7761]
[1735143926365,0.7916,3459.2,3458.2,0.7761]
[1735143926559,2.89071,3459.4,3458.3,3.20519543]
[1735143927286,1.18868295,3459.5,3458.3,0.31360543]
[1735143927454,0.7916,3458.9,3458.2,0.7761]
[1735143928967,2.89091,3459.2,3458.2,0.7761]
[1735143929777,0.7916,3459.3,3458.3,0.02891264]
[1735143929989,0.55,3459.5,3458.2,0.7761]
[1735143930192,0.55,3459.5,3458.4,2.89146]
[1735143930368,0.7916,3459.6,3458.4,0.7761]
[1735143930564,1.18868295,3459.7,3458.6,0.7761]
[1735143930762,1.18868295,3459.7,3458.6,3.7761]
[1735143930995,1.18868295,3459.7,3458.8,2.89111]
[1735143931191,1.18868295,3459.7,3458.9,0.666721]
[1735143931393,0.7916,3459.9,3458.9,0.666721]
[1735143931689,3.68188,3459.9,3458.9,0.666721]
[1735143932279,0.04818969,3459.8,3458.9,0.666721]
[1735143932592,0.04818969,3459.8,3458.6,0.7761]
[1735143932593,2.89067,3459.5,3458.6,0.7761]
[1735143932956,0.05121179,3459.4,3458.6,0.7761]
[1735143933365,0.7916,3459.3,3458.6,0.7761]
[1735143933665,0.05116299,3459.2,3458.6,0.7761]
[1735143935216,0.05116299,3459.2,3458.6,1.23316936]
[1735143935420,1.3416,3459.7,3458.6,1.23316936]
[1735143935625,0.05116299,3459.1,3458.6,0.7761]
[1735143935827,2.89063,3459.5,3458.6,0.7761]
[1735143936103,0.05116299,3459.0,3458.6,0.7761]
[1735143936265,2.89063,3459.5,3458.6,0.7761]
[1735143936462,0.05116299,3458.9,3458.6,0.7761]
[1735143936806,0.05116299,3458.8,3458.6,0.7761]
[1735143937102,2.89063,3459.5,3458.6,0.7761]
[1735143937322,0.05116299,3458.7,3458.6,0.7761]
[1735143937516,2.89063,3459.5,3458.6,0.7761]
[1735143937865,0.05116299,3459.4,3458.6,0.7761]
[1735143940602,0.05116299,3459.4,3458.6,3.7761]
[1735143940799,0.8326,3459.8,3458.6,3.7761]
[1735143941008,0.8326,3459.8,3458.7,0.90275043]
[1735143941175,0.05128499,3459.7,3458.8,2.89112]
[1735143941700,0.05128499,3459.7,3459.0,0.7627]
[1735143941999,2.89025,3459.9,3459.0,0.7627]
[1735143942198,0.05134603,3459.6,3459.0,0.7627]
[1735143942407,2.89025,3459.9,3459.0,0.7627]
[1735143942408,0.05144973,3459.5,3459.0,1.45434847]
[1735143942903,0.05144973,3459.4,3459.0,1.45434847]
[1735143943107,2.89025,3459.9,3459.0,1.45434847]
[1735143943262,0.05144973,3459.3,3459.0,1.45434847]
[1735143943466,0.8326,3460.1,3459.1,0.67053827]
[1735143943669,0.8326,3460.1,3459.2,2.89079]
[1735143945605,0.8326,3460.1,3459.0,0.7627]
[1735143945804,2.02128295,3460.5,3459.4,0.7627]
[1735143946667,4.91104295,3460.5,3459.4,3.65336]
[1735143946919,2.69207214,3460.5,3459.4,4.25469143]
[1735143947733,2.88986,3460.4,3459.4,4.25469143]
[1735143948290,0.8326,3460.5,3459.4,1.36403143]
[1735143948449,1.18868295,3461.0,3459.4,1.36403143]
[1735143948450,0.8326,3460.9,3460.1,2.89007]
[1735143948658,0.8326,3460.9,3460.2,0.7627]
[1735143949162,1.18868295,3461.0,3460.4,2.88982]
[1735143950476,0.8326,3461.2,3460.4,3.49106743]
[1735143950771,0.8326,3461.2,3460.6,2.88966]
[1735143951036,0.8326,3461.2,3460.4,3.49106743]
[1735143951196,0.8326,3461.2,3460.2,4.34850578]
[1735143951197,0.8326,3461.2,3460.2,4.23848578]
[1735143951822,0.8326,3461.2,3460.3,2.88991]
[1735143952215,0.8326,3461.2,3460.2,1.34850578]
[1735143952216,0.8326,3461.2,3460.4,2.88982]
[1735143952612,0.05115672,3461.1,3460.2,1.34850578]
[1735143952842,0.8326,3461.2,3460.5,2.88973]
[1735143953142,0.05115672,3461.0,3460.6,0.288973]
[1735143953312,2.8886,3461.9,3460.6,0.288973]
[1735143953514,0.05115672,3460.9,3460.8,0.7794]
[1735143953706,0.7582,3462.0,3460.6,0.288973]
[1735143953707,0.7582,3461.3,3460.6,0.288973]
[1735143954101,0.05157765,3461.2,3460.2,6.47575578]
[1735143954318,0.05157765,3461.2,3460.2,3.47575578]
[1735143954726,3.64729,3461.3,3460.2,3.47575578]
[1735143954930,0.7582,3460.6,3459.5,0.7794]
[1735143955244,2.94142475,3460.5,3459.5,0.7794]
[1735143955417,2.94142475,3460.5,3459.6,0.367005]
[1735143955615,0.05164475,3460.5,3459.6,0.367005]
[1735143955821,0.7582,3460.3,3459.2,0.7794]
[1735143956004,3.64814,3460.3,3459.2,3.67023]
[1735143956315,2.89001,3460.2,3459.2,3.67023]
[1735143956513,2.89018,3460.0,3458.9,0.7794]
[1735143956712,0.7582,3459.9,3458.7,2.92682171]
[1735143956899,2.89035,3459.8,3458.7,5.81805171]
[1735143957106,2.89035,3459.8,3458.8,2.89117]
[1735143957315,0.7582,3459.9,3458.8,2.89117]
[1735143957642,0.7582,3459.9,3458.9,2.89106]
[1735143957837,0.05142518,3459.8,3458.9,3.55078817]
[1735143961550,2.88984,3460.4,3459.3,2.89073]
[1735143961849,0.80919805,3460.3,3459.3,2.89073]
[1735143962253,0.80919805,3460.3,3459.2,0.7794]
[1735143962254,0.80919805,3460.3,3459.5,2.89056]
[1735143962623,0.80919805,3460.3,3459.5,2.35995427]
[1735143962835,0.7582,3460.6,3459.9,2.89025]
[1735143963574,0.0505527,3460.5,3459.8,0.7794]
[1735143963865,0.7582,3460.9,3460.0,2.89016]
[1735143964065,0.0505527,3460.4,3460.2,2.88993]
[1735143964289,0.7582,3461.2,3459.9,5.35995427]
[1735143964507,0.7582,3461.2,3460.5,0.7794]
[1735143964633,0.7582,3461.2,3460.5,3.66914]
[1735143964969,0.7582,3461.6,3460.5,0.7794]
[1735143965132,0.7582,3461.6,3460.6,2.88966]
[1735143965332,1.42144919,3461.6,3460.6,2.88966]
[1735143965854,2.88857,3462.0,3461.2,2.35995427]
[1735143965855,0.7582,3462.0,3461.2,2.35995427]
[1735143966826,0.7582,3462.0,3461.2,5.24904427]
[1735143967265,0.7582,3462.0,3461.3,2.88908]
[1735143967958,0.7582,3462.3,3461.3,2.88908]
[1735143970168,0.7582,3462.3,3461.2,0.56930627]
[1735143970354,0.04825647,3462.2,3461.2,3.45838627]
[1735143970560,0.04825647,3462.2,3461.3,0.72377863]
[1735143970741,0.7582,3462.3,3461.3,0.72377863]
[1735143971154,2.88846,3462.1,3461.3,0.72377863]
[1735143971459,0.7903,3461.4,3460.3,4.23950954]
[1735143971659,0.55,3462.2,3460.0,0.96167677]
[1735143971660,0.7903,3460.6,3460.0,0.96167677]
[1735143971860,2.88985,3460.4,3459.7,5.99654552]
[1735143972061,0.7903,3460.6,3459.7,5.99654552]
[1735143972573,0.7903,3460.6,3459.7,8.88695552]
[1735143972942,0.7903,3460.6,3459.7,7.68351233]
[1735143973276,0.7903,3460.6,3459.8,0.76835123]
[1735143973484,0.7903,3460.6,3459.8,3.65867123]
[1735143973785,0.7903,3460.6,3459.8,0.76835123]
[1735143974085,0.7903,3460.6,3459.8,3.65868123]
[1735143974250,0.7903,3461.1,3459.9,0.7715]
[1735143974450,0.7903,3461.1,3460.4,2.88976]
[1735143974660,0.7903,3461.6,3460.4,2.88977]
[1735143974885,0.04758567,3461.0,3460.4,2.88977]
[1735143975076,2.88893,3461.5,3460.4,2.88977]
[1735143975272,0.04758567,3460.9,3460.4,2.88977]
[1735143975477,2.88893,3461.5,3460.5,0.288977]
[1735143975647,0.04758567,3460.8,3460.5,0.288977]
[1735143975849,2.88893,3461.5,3460.5,0.288977]
[1735143976064,0.04758567,3460.7,3460.5,3.178687]
[1735143976250,0.7903,3461.6,3460.6,2.88967]
[1735143976451,0.7903,3461.6,3460.7,0.3178647]
[1735143976774,0.7903,3461.6,3460.9,2.8894]
[1735143976976,0.7903,3461.6,3460.8,0.7715]
[1735143977186,0.7903,3461.6,3460.5,0.288977]
[1735143977387,0.7903,3461.6,3460.1,3.0]
[1735143977388,0.7903,3461.1,3459.9,0.58025365]
[1735143977606,2.88959,3460.7,3459.8,3.0]
[1735143977917,0.7903,3461.1,3459.8,3.0]
[1735143978069,2.88944,3460.9,3459.8,3.0]
[1735143981302,0.7903,3460.7,3459.7,4.79310233]
[1735143981603,0.55,3460.8,3459.7,4.79310233]
[1735143981604,0.55,3460.1,3459.7,4.79310233]
[1735143981961,0.55,3460.1,3459.0,2.89093]
[1735143982163,0.7903,3460.2,3459.5,2.89058]
[1735143982375,0.55,3460.6,3459.6,3.179538]
[1735143982576,0.04410758,3460.1,3459.6,3.179538]
[1735143982777,0.55,3460.6,3459.6,3.179538]
[1735143983001,0.04410758,3460.0,3459.6,3.179538]
[1735143983303,0.04410758,3459.9,3459.7,3.70332]
[1735143983511,0.7903,3460.7,3459.7,3.70332]
[1735143983807,0.04410758,3459.8,3459.7,3.70332]
[1735143983974,0.7903,3460.7,3459.7,3.70332]
[1735143984373,0.04399768,3460.6,3459.7,3.70332]
[1735143984687,0.04399768,3460.6,3459.8,0.3992378]
[1735143985203,0.04399768,3460.6,3459.7,3.70332]
[1735143986984,0.04399768,3460.6,3459.7,0.8129]
[1735143987183,0.04399768,3460.6,3459.8,2.89031]
[1735143987401,0.7903,3460.7,3459.8,2.89031]
[1735143987599,0.04379878,3460.5,3459.8,2.89031]
[1735143987810,0.7903,3460.7,3459.8,2.89031]
[1735143987811,0.7903,3460.7,3459.9,0.45802973]
[1735143988024,0.04379878,3460.4,3459.8,2.89031]
[1735143988225,0.7903,3460.7,3459.8,2.89031]
[1735143988415,0.04379878,3460.3,3459.8,2.89031]
[1735143988612,0.7903,3460.7,3459.6,3.76756727]
[1735143988803,0.04379878,3460.2,3459.6,3.76756727]
[1735143989001,3.6799,3460.7,3459.7,0.45804673]
[1735143989203,0.04379878,3460.1,3459.7,0.45804673]
[1735143989514,3.6799,3460.7,3459.7,0.45804673]
[1735143989515,0.04382318,3460.0,3459.9,2.89025]
[1735143989714,0.7675,3461.0,3460.1,3.70297]
[1735143990330,1.18868295,3461.1,3460.2,2.88999]
[1735143990550,1.18868295,3461.1,3460.5,2.88974]
[1735143990712,1.18868295,3461.3,3460.4,2.35546602]
[1735143991027,1.18868295,3461.3,3460.9,2.8894]
[1735143991538,1.18868295,3461.3,3460.8,2.35546602]
[1735143992090,0.7675,3461.9,3461.1,2.88917]
[1735143992318,0.7675,3461.9,3461.2,2.88916]
[1735143993128,0.7675,3461.9,3461.2,5.24462602]
[1735143993653,0.7675,3461.9,3461.2,2.35546602]
[1735143994107,2.88841,3462.2,3461.3,0.7616]
[1735143995338,2.88841,3462.2,3461.3,1.126681]
[1735143996559,0.7828,3462.3,3461.3,1.126681]
[1735143996878,2.88842,3462.1,3461.3,1.126681]
[1735143999187,3.67106,3462.3,3461.3,1.126681]
[1735143999608,1.18868295,3462.5,3461.6,2.88881]
[1735143999777,1.18868295,3462.5,3461.7,0.288881]
[1735144001154,3.66672,3462.6,3461.7,0.288881]
[1735144001941,0.55,3462.5,3461.7,0.288881]
[1735144002142,0.55,3462.5,3461.3,1.126681]
[1735144003679,0.04550749,3462.4,3461.3,1.126681]
[1735144003981,2.88833,3462.3,3461.3,1.126681]
[1735144004386,0.04550749,3462.4,3461.3,1.126681]
[1735144004387,2.8881,3462.5,3461.5,2.88892]
[1735144004540,0.04550749,3462.2,3461.5,2.88892]
[1735144004744,2.8881,3462.5,3461.6,0.4015601]
[1735144004984,0.04550749,3462.1,3461.6,0.4015601]
[1735144005167,2.8881,3462.5,3461.6,0.4015601]
[1735144005365,0.04548309,3462.0,3461.6,0.4015601]
[1735144005574,3.66677,3462.6,3461.5,2.8889]
[1735144005884,3.66677,3462.6,3461.3,1.1555632]
[1735144005885,2.8882,3462.4,3461.3,4.015691]
[1735144006253,2.8882,3462.4,3461.4,2.88899]
[1735144006439,0.7787,3462.6,3461.3,1.126681]
[1735144006440,0.04548309,3462.3,3461.3,1.126681]
[1735144006640,2.88812,3462.5,3461.3,4.015691]
[1735144006836,0.04548309,3462.4,3461.4,0.75011214]
[1735144008276,2.88826,3462.3,3461.4,0.75011214]
[1735144008490,2.88826,3462.3,3461.3,1.126681]
[1735144008689,0.04548309,3462.2,3461.3,1.126681]